[Event "*** SCC Grand Prix: Titled Tuesday Blitz"]
[Site "Chess.com"]
[Date "2020.07.21"]
[Round "5"]
[White "Slovak_fighter2000"]
[Black "Alindsay211"]
[Result "1-0"]
[WhiteElo "2456"]
[BlackElo "2288"]
[TimeControl "180+1"]
[EndTime "10:54:58 PDT"]
[Termination "Slovak_fighter2000 won by resignation"]

1. d4 {[%clk 0:03:00.9]} 1... e6 {[%clk 0:02:45.7]} 2. Nf3 {[%clk 0:03:01.8]}
2... d5 {[%clk 0:02:46.3]} 3. Bf4 {[%clk 0:02:59.5]} 3... Bd6 {[%clk 0:02:44.7]}
4. Bg3 {[%clk 0:02:52.8]} 4... Nf6 {[%clk 0:02:44]} 5. e3 {[%clk 0:02:46]} 5...
b6 {[%clk 0:02:38.8]} 6. Bd3 {[%clk 0:02:40.8]} 6... Bb7 {[%clk 0:02:36.7]} 7.
Qe2 {[%clk 0:02:38.9]} 7... O-O {[%clk 0:02:33.1]} 8. Nbd2 {[%clk 0:02:37.2]}
8... c5 {[%clk 0:02:30.8]} 9. c3 {[%clk 0:02:36.9]} 9... Qc7 {[%clk 0:02:25.4]}
10. dxc5 {[%clk 0:02:31.7]} 10... bxc5 {[%clk 0:02:24.6]} 11. e4 {[%clk
0:02:29.7]} 11... dxe4 {[%clk 0:02:18.3]} 12. Nxe4 {[%clk 0:02:29.3]} 12... Nxe4
{[%clk 0:02:12.4]} 13. Bxe4 {[%clk 0:02:29]} 13... Bxe4 {[%clk 0:02:10]} 14.
Qxe4 {[%clk 0:02:29.9]} 14... Nd7 {[%clk 0:02:09.7]} 15. Rd1 {[%clk 0:02:24.8]}
15... Bxg3 {[%clk 0:02:06.4]} 16. hxg3 {[%clk 0:02:25.7]} 16... Nf6 {[%clk
0:02:05.7]} 17. Qe5 {[%clk 0:02:19.3]} 17... Qb6 {[%clk 0:01:31.2]} 18. b3
{[%clk 0:02:04.1]} 18... Rfd8 {[%clk 0:01:27.7]} 19. O-O {[%clk 0:02:01.4]}
19... Rd5 {[%clk 0:01:17.1]} 20. Qe2 {[%clk 0:01:53]} 20... Rad8 {[%clk
0:01:12.2]} 21. c4 {[%clk 0:01:50.5]} 21... R5d6 {[%clk 0:00:58.4]} 22. Ne5
{[%clk 0:01:35.2]} 22... Rd4 {[%clk 0:00:36]} 23. Nf3 {[%clk 0:01:34]} 23...
R4d6 {[%clk 0:00:35.6]} 24. Qc2 {[%clk 0:01:28.5]} 24... h6 {[%clk 0:00:28.9]}
25. Rfe1 {[%clk 0:01:25.9]} 25... Qb4 {[%clk 0:00:18.7]} 26. Qe2 {[%clk
0:01:17.2]} 26... Qb6 {[%clk 0:00:17.2]} 27. Rxd6 {[%clk 0:01:15.6]} 27... Qxd6
{[%clk 0:00:17.7]} 28. Qe5 {[%clk 0:01:14.2]} 28... Qxe5 {[%clk 0:00:15.8]} 29.
Rxe5 {[%clk 0:01:15.1]} 29... Rd1+ {[%clk 0:00:14.9]} 30. Kh2 {[%clk 0:01:04.7]}
30... Ra1 {[%clk 0:00:13.6]} 31. Re2 {[%clk 0:00:58.3]} 31... Kf8 {[%clk
0:00:10]} 32. Ne5 {[%clk 0:00:57]} 32... Ke7 {[%clk 0:00:09.5]} 33. f3 {[%clk
0:00:55.1]} 33... Nd7 {[%clk 0:00:09.3]} 34. Nc6+ {[%clk 0:00:54.3]} 34... Kd6
{[%clk 0:00:08.5]} 35. Nxa7 {[%clk 0:00:55.2]} 35... Kc7 {[%clk 0:00:08.5]} 36.
Nb5+ {[%clk 0:00:55.2]} 36... Kc6 {[%clk 0:00:08.7]} 37. g4 {[%clk 0:00:54.9]}
37... Nf6 {[%clk 0:00:05.6]} 38. Rd2 {[%clk 0:00:54.2]} 38... Ne8 {[%clk
0:00:04]} 39. Rd8 {[%clk 0:00:52.8]} 39... Nc7 {[%clk 0:00:03.2]} 40. Rc8 {[%clk
0:00:52.3]} 40... Kb6 {[%clk 0:00:02.2]} 41. Rxc7 {[%clk 0:00:52.1]} 1-0

[Event "*** SCC Grand Prix: Titled Tuesday Blitz"]
[Site "Chess.com"]
[Date "2020.07.21"]
[Round "5"]
[White "fmshawnrl123"]
[Black "Jumbo"]
[Result "0-1"]
[WhiteElo "2669"]
[BlackElo "2866"]
[TimeControl "180+1"]
[EndTime "10:54:59 PDT"]
[Termination "Jumbo won by checkmate"]

1. c4 {[%clk 0:03:00.9]} 1... e5 {[%clk 0:02:58.9]} 2. g3 {[%clk 0:03:00.5]}
2... Nf6 {[%clk 0:02:53]} 3. Bg2 {[%clk 0:03:00.4]} 3... d5 {[%clk 0:02:53.4]}
4. cxd5 {[%clk 0:03:01.3]} 4... Nxd5 {[%clk 0:02:53.5]} 5. Nc3 {[%clk
0:03:02.1]} 5... Nb6 {[%clk 0:02:52.3]} 6. Nf3 {[%clk 0:03:01.4]} 6... Nc6
{[%clk 0:02:52.5]} 7. O-O {[%clk 0:03:01.7]} 7... Be7 {[%clk 0:02:52.8]} 8. a3
{[%clk 0:03:01.9]} 8... a5 {[%clk 0:02:49.4]} 9. d3 {[%clk 0:03:00.5]} 9... O-O
{[%clk 0:02:46.6]} 10. Be3 {[%clk 0:03:00.7]} 10... Be6 {[%clk 0:02:46.3]} 11.
Rc1 {[%clk 0:02:57.4]} 11... a4 {[%clk 0:02:40.3]} 12. Bxb6 {[%clk 0:02:46]}
12... cxb6 {[%clk 0:02:41.2]} 13. Nxa4 {[%clk 0:02:34.8]} 13... e4 {[%clk
0:02:40.8]} 14. Ne1 {[%clk 0:02:31.6]} 14... Bg5 {[%clk 0:02:20.9]} 15. e3
{[%clk 0:01:46.3]} 15... exd3 {[%clk 0:02:08.4]} 16. Nxd3 {[%clk 0:01:34.7]}
16... Rxa4 {[%clk 0:01:58.1]} 17. Qxa4 {[%clk 0:01:35.6]} 17... Qxd3 {[%clk
0:01:58.1]} 18. Rfd1 {[%clk 0:01:24.2]} 18... Qe2 {[%clk 0:01:54.1]} 19. Bd5
{[%clk 0:00:56.1]} 19... Bxe3 {[%clk 0:00:59.9]} 20. Qc2 {[%clk 0:00:12.2]}
20... Bxf2+ {[%clk 0:00:52.4]} 21. Kg2 {[%clk 0:00:10]} 21... Bxd5+ {[%clk
0:00:41.4]} 22. Rxd5 {[%clk 0:00:09.7]} 22... Qe6 {[%clk 0:00:40.2]} 23. Rh5
{[%clk 0:00:02.8]} 23... g6 {[%clk 0:00:38.2]} 24. Rh4 {[%clk 0:00:03.1]} 24...
Bc5 {[%clk 0:00:33.4]} 25. Rf1 {[%clk 0:00:02.9]} 25... Re8 {[%clk 0:00:30.2]}
26. Rhf4 {[%clk 0:00:02.5]} 26... Qd5+ {[%clk 0:00:30.1]} 27. Kh3 {[%clk
0:00:02.5]} 27... Re7 {[%clk 0:00:29.4]} 28. R4f3 {[%clk 0:00:02.1]} 28... Nd4
{[%clk 0:00:28.6]} 29. Qd1 {[%clk 0:00:01.8]} 29... Qe6+ {[%clk 0:00:27.4]} 30.
Kg2 {[%clk 0:00:01.7]} 30... Nxf3 {[%clk 0:00:27.7]} 31. Kxf3 {[%clk 0:00:02.4]}
31... Qe4# {[%clk 0:00:26.7]} 0-1

[Event "*** SCC Grand Prix: Titled Tuesday Blitz"]
[Site "Chess.com"]
[Date "2020.07.21"]
[Round "5"]
[White "Gabix_94"]
[Black "Kezin_Roman"]
[Result "1-0"]
[WhiteElo "2895"]
[BlackElo "2734"]
[TimeControl "180+1"]
[EndTime "10:55:00 PDT"]
[Termination "Gabix_94 won by checkmate"]

1. Nf3 {[%clk 0:03:00.7]} 1... d5 {[%clk 0:02:59.6]} 2. g3 {[%clk 0:03:00.1]}
2... Nf6 {[%clk 0:02:59.3]} 3. Bg2 {[%clk 0:03:00.5]} 3... e6 {[%clk 0:02:59.3]}
4. O-O {[%clk 0:02:59.6]} 4... Be7 {[%clk 0:02:59.7]} 5. c4 {[%clk 0:02:58.8]}
5... d4 {[%clk 0:02:59.4]} 6. e3 {[%clk 0:02:57.8]} 6... c5 {[%clk 0:02:59.1]}
7. exd4 {[%clk 0:02:58.1]} 7... cxd4 {[%clk 0:03:00]} 8. d3 {[%clk 0:02:58.7]}
8... O-O {[%clk 0:02:57.8]} 9. a3 {[%clk 0:02:56.6]} 9... a5 {[%clk 0:02:57.3]}
10. Nbd2 {[%clk 0:02:57.2]} 10... Nc6 {[%clk 0:02:57.3]} 11. Re1 {[%clk
0:02:52.7]} 11... Nd7 {[%clk 0:02:55.3]} 12. Rb1 {[%clk 0:02:48]} 12... a4
{[%clk 0:02:51.3]} 13. Ne4 {[%clk 0:02:47.2]} 13... Re8 {[%clk 0:02:48.3]} 14.
b4 {[%clk 0:02:37.3]} 14... axb3 {[%clk 0:02:47.9]} 15. Rxb3 {[%clk 0:02:35.4]}
15... f5 {[%clk 0:02:40.9]} 16. Neg5 {[%clk 0:02:31.1]} 16... Nc5 {[%clk
0:02:40.6]} 17. Rb5 {[%clk 0:02:28.9]} 17... h6 {[%clk 0:02:40.5]} 18. Nh3
{[%clk 0:02:23.2]} 18... Na4 {[%clk 0:02:32.4]} 19. Ne5 {[%clk 0:02:05.9]} 19...
Nc3 {[%clk 0:02:14.4]} 20. Qh5 {[%clk 0:02:04.7]} 20... Rf8 {[%clk 0:00:24.9]}
21. Bxh6 {[%clk 0:01:51.6]} 21... Nxe5 {[%clk 0:00:15.9]} 22. Rbxe5 {[%clk
0:01:52.5]} 22... gxh6 {[%clk 0:00:16.2]} 23. Qg6+ {[%clk 0:01:50.4]} 23... Kh8
{[%clk 0:00:16.6]} 24. Qxh6+ {[%clk 0:01:50.9]} 24... Kg8 {[%clk 0:00:17.3]} 25.
Qg6+ {[%clk 0:01:46.5]} 25... Kh8 {[%clk 0:00:17.1]} 26. Qh6+ {[%clk 0:01:40.9]}
26... Kg8 {[%clk 0:00:17]} 27. Nf4 {[%clk 0:01:37.5]} 27... Bf6 {[%clk
0:00:04.7]} 28. Qg6+ {[%clk 0:01:33.9]} 28... Kh8 {[%clk 0:00:05]} 29. Nxe6
{[%clk 0:01:31]} 29... Bxe6 {[%clk 0:00:04.9]} 30. Rxe6 {[%clk 0:01:31.9]} 30...
Ra6 {[%clk 0:00:04.3]} 31. Re8 {[%clk 0:01:27.2]} 31... Qd6 {[%clk 0:00:03.4]}
32. Rxf8+ {[%clk 0:01:25]} 32... Qxf8 {[%clk 0:00:03]} 33. Re8 {[%clk
0:01:25.6]} 33... Bg7 {[%clk 0:00:02.3]} 34. Rxf8+ {[%clk 0:01:24.7]} 34... Bxf8
{[%clk 0:00:03.2]} 35. Qxf5 {[%clk 0:01:23.3]} 35... Bg7 {[%clk 0:00:03.3]} 36.
Be4 {[%clk 0:01:20.7]} 36... Nxe4 {[%clk 0:00:02.7]} 37. Qxe4 {[%clk 0:01:21.6]}
37... Rxa3 {[%clk 0:00:03.2]} 38. Qe8+ {[%clk 0:01:20.2]} 38... Kh7 {[%clk
0:00:03.3]} 39. Qe4+ {[%clk 0:01:20.7]} 39... Kh8 {[%clk 0:00:03.1]} 40. Kg2
{[%clk 0:01:20.7]} 40... b6 {[%clk 0:00:02.6]} 41. h4 {[%clk 0:01:19.6]} 41...
Rc3 {[%clk 0:00:02.4]} 42. h5 {[%clk 0:01:17.8]} 42... Rc2 {[%clk 0:00:03.3]}
43. g4 {[%clk 0:01:16.1]} 43... Bh6 {[%clk 0:00:03.3]} 44. Qxd4+ {[%clk
0:01:15.7]} 44... Kh7 {[%clk 0:00:04.2]} 45. Qe4+ {[%clk 0:01:15.9]} 45... Kh8
{[%clk 0:00:04.4]} 46. g5 {[%clk 0:01:14.4]} 46... Bxg5 {[%clk 0:00:04.2]} 47.
Qe5+ {[%clk 0:01:14.8]} 47... Kh7 {[%clk 0:00:03]} 48. Qxg5 {[%clk 0:01:15.1]}
48... b5 {[%clk 0:00:03.9]} 49. h6 {[%clk 0:01:11.4]} 49... Kh8 {[%clk
0:00:04.8]} 50. Qg7# {[%clk 0:01:11.4]} 1-0

[Event "*** SCC Grand Prix: Titled Tuesday Blitz"]
[Site "Chess.com"]
[Date "2020.07.21"]
[Round "5"]
[White "vanea_03"]
[Black "hermionegrangermagic"]
[Result "1-0"]
[WhiteElo "2713"]
[BlackElo "2483"]
[TimeControl "180+1"]
[EndTime "10:55:00 PDT"]
[Termination "vanea_03 won by checkmate"]

1. d4 {[%clk 0:03:00.9]} 1... Nf6 {[%clk 0:02:46.9]} 2. c4 {[%clk 0:03:00]} 2...
e6 {[%clk 0:02:30]} 3. g3 {[%clk 0:02:59.8]} 3... d5 {[%clk 0:02:14.3]} 4. Bg2
{[%clk 0:02:59.7]} 4... Be7 {[%clk 0:02:13.7]} 5. Nf3 {[%clk 0:02:59.9]} 5...
O-O {[%clk 0:02:13.3]} 6. Nc3 {[%clk 0:03:00.5]} 6... dxc4 {[%clk 0:02:05.7]} 7.
Ne5 {[%clk 0:03:00.1]} 7... Nbd7 {[%clk 0:02:00]} 8. Nxc4 {[%clk 0:02:59.3]}
8... c5 {[%clk 0:01:59.5]} 9. dxc5 {[%clk 0:02:55.5]} 9... Bxc5 {[%clk
0:01:58.2]} 10. O-O {[%clk 0:02:54.3]} 10... a6 {[%clk 0:01:55.2]} 11. Bf4
{[%clk 0:02:49.9]} 11... Qe7 {[%clk 0:01:10.7]} 12. Rc1 {[%clk 0:02:36]} 12...
e5 {[%clk 0:01:03.6]} 13. Bg5 {[%clk 0:02:34.9]} 13... Qe6 {[%clk 0:00:50.5]}
14. Nd5 {[%clk 0:02:32]} 14... Nxd5 {[%clk 0:00:41.8]} 15. Bxd5 {[%clk
0:02:32.4]} 15... Qg6 {[%clk 0:00:41]} 16. Qd2 {[%clk 0:02:16.6]} 16... Qf5
{[%clk 0:00:15.9]} 17. e4 {[%clk 0:02:12.1]} 17... Qh3 {[%clk 0:00:14.9]} 18. b4
{[%clk 0:01:57.3]} 18... Bd4 {[%clk 0:00:14.4]} 19. Nd6 {[%clk 0:01:57.1]} 19...
h6 {[%clk 0:00:13.9]} 20. Be7 {[%clk 0:01:52.8]} 20... Nf6 {[%clk 0:00:13.2]}
21. Kh1 {[%clk 0:01:08.9]} 21... Ng4 {[%clk 0:00:12.1]} 22. f3 {[%clk
0:01:08.1]} 22... Ne3 {[%clk 0:00:11.5]} 23. Rfe1 {[%clk 0:01:02.9]} 23... Nxd5
{[%clk 0:00:09.2]} 24. exd5 {[%clk 0:01:03.8]} 24... Qh5 {[%clk 0:00:06.9]} 25.
Qe2 {[%clk 0:00:58]} 25... Bh3 {[%clk 0:00:04.7]} 26. Bxf8 {[%clk 0:00:57.2]}
26... Rxf8 {[%clk 0:00:05.6]} 27. Nxb7 {[%clk 0:00:55.3]} 27... f5 {[%clk
0:00:05.5]} 28. d6 {[%clk 0:00:44.4]} 28... e4 {[%clk 0:00:05.4]} 29. fxe4
{[%clk 0:00:41.8]} 29... Bg4 {[%clk 0:00:04.8]} 30. Qc4+ {[%clk 0:00:41.6]}
30... Kh7 {[%clk 0:00:03.8]} 31. Qxd4 {[%clk 0:00:39.7]} 31... fxe4 {[%clk
0:00:03.8]} 32. Rc7 {[%clk 0:00:25]} 32... e3 {[%clk 0:00:03.3]} 33. Qxg7#
{[%clk 0:00:24.3]} 1-0

[Event "*** SCC Grand Prix: Titled Tuesday Blitz"]
[Site "Chess.com"]
[Date "2020.07.21"]
[Round "5"]
[White "Agnes66678"]
[Black "Munguntuul_B"]
[Result "0-1"]
[WhiteElo "2475"]
[BlackElo "2688"]
[TimeControl "180+1"]
[EndTime "10:55:05 PDT"]
[Termination "Munguntuul_B won by checkmate"]

1. Nf3 {[%clk 0:03:00.9]} 1... d5 {[%clk 0:02:59.1]} 2. g3 {[%clk 0:03:00.7]}
2... Nf6 {[%clk 0:02:57.8]} 3. Bg2 {[%clk 0:03:00.5]} 3... Bg4 {[%clk 0:02:57]}
4. h3 {[%clk 0:02:59.8]} 4... Bh5 {[%clk 0:02:55.6]} 5. O-O {[%clk 0:02:59.5]}
5... Nbd7 {[%clk 0:02:54.4]} 6. d3 {[%clk 0:02:57.2]} 6... e5 {[%clk 0:02:53.2]}
7. c4 {[%clk 0:02:53.1]} 7... c6 {[%clk 0:02:52.2]} 8. Nc3 {[%clk 0:02:49]} 8...
d4 {[%clk 0:02:49.5]} 9. Nb1 {[%clk 0:02:47.7]} 9... Bd6 {[%clk 0:02:46.6]} 10.
e3 {[%clk 0:02:47.3]} 10... c5 {[%clk 0:02:45.2]} 11. exd4 {[%clk 0:02:46.7]}
11... cxd4 {[%clk 0:02:44.7]} 12. Re1 {[%clk 0:02:44.2]} 12... O-O {[%clk
0:02:43.7]} 13. a3 {[%clk 0:02:39.7]} 13... a5 {[%clk 0:02:42.2]} 14. Nbd2
{[%clk 0:02:40]} 14... Nc5 {[%clk 0:02:33.7]} 15. Qc2 {[%clk 0:02:29.9]} 15...
Bg6 {[%clk 0:02:23.8]} 16. Bf1 {[%clk 0:02:20.6]} 16... Qc7 {[%clk 0:02:08.7]}
17. Rb1 {[%clk 0:02:16.6]} 17... a4 {[%clk 0:01:58.1]} 18. b4 {[%clk 0:02:10.7]}
18... axb3 {[%clk 0:01:57.2]} 19. Nxb3 {[%clk 0:02:11]} 19... Na4 {[%clk
0:01:56.9]} 20. c5 {[%clk 0:02:00.6]} 20... Nxc5 {[%clk 0:01:52]} 21. Nxc5
{[%clk 0:01:58.1]} 21... b6 {[%clk 0:01:35.8]} 22. Bg5 {[%clk 0:01:40.3]} 22...
Nd5 {[%clk 0:01:22.6]} 23. Qc4 {[%clk 0:01:36.3]} 23... Qxc5 {[%clk 0:01:21.4]}
24. Nxe5 {[%clk 0:00:56.3]} 24... Nc3 {[%clk 0:01:12]} 25. Rb5 {[%clk
0:00:49.5]} 25... Qxb5 {[%clk 0:01:07.3]} 26. Qxd4 {[%clk 0:00:44.3]} 26... Bxe5
{[%clk 0:01:02.2]} 27. Rxe5 {[%clk 0:00:42.9]} 27... Qb3 {[%clk 0:00:59.9]} 28.
Bd2 {[%clk 0:00:36]} 28... Rxa3 {[%clk 0:00:54.2]} 29. h4 {[%clk 0:00:26.7]}
29... h5 {[%clk 0:00:52.8]} 30. Re7 {[%clk 0:00:17.6]} 30... Qc2 {[%clk
0:00:51.3]} 31. Be3 {[%clk 0:00:15.3]} 31... Ra1 {[%clk 0:00:49.5]} 32. Kg2
{[%clk 0:00:13.7]} 32... Qd1 {[%clk 0:00:46.7]} 33. Qxb6 {[%clk 0:00:11.4]}
33... Qxf1+ {[%clk 0:00:45.6]} 34. Kf3 {[%clk 0:00:12.3]} 34... Qh1+ {[%clk
0:00:43.4]} 35. Kf4 {[%clk 0:00:12.6]} 35... Ra4+ {[%clk 0:00:41]} 36. Kg5
{[%clk 0:00:11.7]} 36... Qd5+ {[%clk 0:00:39.4]} 37. Re5 {[%clk 0:00:10.6]}
37... Qxe5# {[%clk 0:00:38.6]} 0-1

[Event "*** SCC Grand Prix: Titled Tuesday Blitz"]
[Site "Chess.com"]
[Date "2020.07.21"]
[Round "5"]
[White "MacDaddyMac"]
[Black "TargetA"]
[Result "0-1"]
[WhiteElo "2379"]
[BlackElo "2551"]
[TimeControl "180+1"]
[EndTime "10:55:05 PDT"]
[Termination "TargetA won by resignation"]

1. e4 {[%clk 0:03:00.9]} 1... c5 {[%clk 0:02:48.3]} 2. Nc3 {[%clk 0:03:00.5]}
2... Nc6 {[%clk 0:02:47]} 3. f4 {[%clk 0:03:00.2]} 3... g6 {[%clk 0:02:46.7]} 4.
Nf3 {[%clk 0:03:00.1]} 4... Bg7 {[%clk 0:02:46.8]} 5. Bb5 {[%clk 0:03:00.5]}
5... Nd4 {[%clk 0:02:46.3]} 6. O-O {[%clk 0:03:00.7]} 6... Nxb5 {[%clk 0:02:46]}
7. Nxb5 {[%clk 0:03:01.6]} 7... d6 {[%clk 0:02:45.1]} 8. d3 {[%clk 0:03:00.1]}
8... a6 {[%clk 0:02:44.9]} 9. Nc3 {[%clk 0:03:00]} 9... b5 {[%clk 0:02:44]} 10.
Qe1 {[%clk 0:02:59.9]} 10... Bb7 {[%clk 0:02:43.6]} 11. Qh4 {[%clk 0:02:59.4]}
11... Qd7 {[%clk 0:02:40.1]} 12. f5 {[%clk 0:02:57.9]} 12... Nf6 {[%clk
0:02:39]} 13. Bh6 {[%clk 0:02:56.7]} 13... Bxh6 {[%clk 0:02:38.2]} 14. Qxh6
{[%clk 0:02:56.6]} 14... gxf5 {[%clk 0:02:35.1]} 15. Ng5 {[%clk 0:02:51.6]}
15... Rg8 {[%clk 0:02:15.3]} 16. Rxf5 {[%clk 0:02:41.1]} 16... Rg6 {[%clk
0:02:07.6]} 17. Qh3 {[%clk 0:02:24.5]} 17... O-O-O {[%clk 0:02:06.2]} 18. Nxh7
{[%clk 0:01:45.6]} 18... Rdg8 {[%clk 0:01:35.4]} 19. Nxf6 {[%clk 0:01:41.1]}
19... Rxg2+ {[%clk 0:01:33.6]} 20. Qxg2 {[%clk 0:01:41.3]} 20... Rxg2+ {[%clk
0:01:33.5]} 21. Kxg2 {[%clk 0:01:41.6]} 21... Qxf5 {[%clk 0:01:33.2]} 22. Nfd5
{[%clk 0:01:36.4]} 22... Qg5+ {[%clk 0:01:28]} 23. Kh1 {[%clk 0:01:32.4]} 23...
e6 {[%clk 0:01:19.5]} 24. Rg1 {[%clk 0:01:30.1]} 24... Qh4 {[%clk 0:01:19.4]}
25. Rg8+ {[%clk 0:00:52.9]} 25... Kd7 {[%clk 0:01:18.1]} 26. Nb6+ {[%clk
0:00:49.8]} 26... Kc7 {[%clk 0:01:17.9]} 27. Na8+ {[%clk 0:00:49.8]} 27... Bxa8
{[%clk 0:01:12.9]} 28. Rxa8 {[%clk 0:00:49.2]} 28... Qe1+ {[%clk 0:01:05.5]} 29.
Kg2 {[%clk 0:00:49.2]} 29... b4 {[%clk 0:01:03.7]} 30. Na4 {[%clk 0:00:40]}
30... Qe2+ {[%clk 0:01:02.9]} 31. Kg3 {[%clk 0:00:39.6]} 31... Qxc2 {[%clk
0:01:02.4]} 32. Ra7+ {[%clk 0:00:28.4]} 32... Kb8 {[%clk 0:01:01.7]} 33. Rxf7
{[%clk 0:00:27.5]} 33... Qxa4 {[%clk 0:00:58.4]} 34. h4 {[%clk 0:00:27.9]} 34...
Qd1 {[%clk 0:00:53.2]} 35. Rf3 {[%clk 0:00:26.9]} 35... Qg1+ {[%clk 0:00:48.1]}
36. Kh3 {[%clk 0:00:26.2]} 36... d5 {[%clk 0:00:45.6]} 37. exd5 {[%clk
0:00:20.1]} 37... exd5 {[%clk 0:00:46.5]} 38. h5 {[%clk 0:00:20.7]} 38... Qg5
{[%clk 0:00:42.7]} 39. Rf8+ {[%clk 0:00:13.7]} 39... Kb7 {[%clk 0:00:42.3]} 40.
Rh8 {[%clk 0:00:13.9]} 40... Qe3+ {[%clk 0:00:39.8]} 41. Kg4 {[%clk 0:00:13.4]}
41... Qd4+ {[%clk 0:00:39.6]} 42. Kf5 {[%clk 0:00:13.8]} 42... Qxh8 {[%clk
0:00:40.5]} 0-1

[Event "*** SCC Grand Prix: Titled Tuesday Blitz"]
[Site "Chess.com"]
[Date "2020.07.21"]
[Round "5"]
[White "cukin84"]
[Black "XiaoKangZhong"]
[Result "0-1"]
[WhiteElo "2165"]
[BlackElo "2354"]
[TimeControl "180+1"]
[EndTime "10:55:05 PDT"]
[Termination "XiaoKangZhong won by checkmate"]

1. e4 {[%clk 0:03:00.9]} 1... c6 {[%clk 0:02:59.2]} 2. d4 {[%clk 0:03:00.2]}
2... d5 {[%clk 0:02:52.1]} 3. Nd2 {[%clk 0:02:58.4]} 3... dxe4 {[%clk
0:02:47.6]} 4. Nxe4 {[%clk 0:02:58]} 4... Nf6 {[%clk 0:02:48.4]} 5. Nxf6+ {[%clk
0:02:56]} 5... exf6 {[%clk 0:02:49.3]} 6. Nf3 {[%clk 0:02:48.9]} 6... Bd6 {[%clk
0:02:50.2]} 7. Bd3 {[%clk 0:02:47.7]} 7... O-O {[%clk 0:02:50.6]} 8. O-O {[%clk
0:02:47]} 8... Qc7 {[%clk 0:02:49.7]} 9. c4 {[%clk 0:02:43.5]} 9... Rd8 {[%clk
0:02:46.9]} 10. Be3 {[%clk 0:02:39.7]} 10... Nd7 {[%clk 0:02:45.5]} 11. Qc2
{[%clk 0:02:39]} 11... Nf8 {[%clk 0:02:45.4]} 12. Rac1 {[%clk 0:02:36.7]} 12...
Bg4 {[%clk 0:02:40.5]} 13. c5 {[%clk 0:02:33.8]} 13... Bf4 {[%clk 0:02:34.1]}
14. Be2 {[%clk 0:02:17.3]} 14... Bxf3 {[%clk 0:02:30.8]} 15. Bxf3 {[%clk
0:02:17.3]} 15... Bxh2+ {[%clk 0:02:31]} 16. Kh1 {[%clk 0:02:17.7]} 16... Bf4
{[%clk 0:02:31.9]} 17. Qf5 {[%clk 0:02:13.3]} 17... Bxe3 {[%clk 0:02:30.2]} 18.
fxe3 {[%clk 0:02:13.6]} 18... Qd7 {[%clk 0:02:27]} 19. Qf4 {[%clk 0:02:12.6]}
19... Ng6 {[%clk 0:02:23.5]} 20. Qg3 {[%clk 0:02:11.9]} 20... Qe6 {[%clk
0:02:23.6]} 21. b3 {[%clk 0:02:06.6]} 21... Qxe3 {[%clk 0:02:16.3]} 22. Rcd1
{[%clk 0:02:03.7]} 22... Rxd4 {[%clk 0:02:00.2]} 23. Rde1 {[%clk 0:02:01.1]}
23... Qc3 {[%clk 0:01:35.5]} 24. Qc7 {[%clk 0:01:59.6]} 24... Qxc5 {[%clk
0:01:29.3]} 25. g3 {[%clk 0:01:49.7]} 25... Qb6 {[%clk 0:01:25.7]} 26. Re7
{[%clk 0:01:30.7]} 26... Nxe7 {[%clk 0:01:12]} 27. Qxe7 {[%clk 0:01:30.1]} 27...
Rdd8 {[%clk 0:01:09.5]} 28. Bh5 {[%clk 0:01:26.7]} 28... Rf8 {[%clk 0:01:03.1]}
29. Rf4 {[%clk 0:01:22.9]} 29... Qd8 {[%clk 0:00:51.7]} 30. Qxb7 {[%clk
0:01:21.6]} 30... Rb8 {[%clk 0:00:46.6]} 31. Qxc6 {[%clk 0:01:20.6]} 31... Rc8
{[%clk 0:00:47]} 32. Qb7 {[%clk 0:01:15.3]} 32... Rc1+ {[%clk 0:00:43.5]} 33.
Kh2 {[%clk 0:01:14.7]} 33... Qd2+ {[%clk 0:00:43.3]} 34. Kh3 {[%clk 0:01:11.5]}
34... Rc2 {[%clk 0:00:37.4]} 35. Bf3 {[%clk 0:01:02.5]} 35... Qh2+ {[%clk
0:00:27.7]} 36. Kg4 {[%clk 0:01:02.2]} 36... Rc5 {[%clk 0:00:26.9]} 37. Bd5
{[%clk 0:00:52]} 37... h5+ {[%clk 0:00:22.8]} 38. Kf5 {[%clk 0:00:49.1]} 38...
Qxg3 {[%clk 0:00:14]} 39. Ke4 {[%clk 0:00:43.6]} 39... Re8+ {[%clk 0:00:10.6]}
40. Kd4 {[%clk 0:00:27.7]} 40... Qe3# {[%clk 0:00:10.4]} 0-1

[Event "*** SCC Grand Prix: Titled Tuesday Blitz"]
[Site "Chess.com"]
[Date "2020.07.21"]
[Round "5"]
[White "Indianlad"]
[Black "S2PAc"]
[Result "1-0"]
[WhiteElo "2975"]
[BlackElo "2792"]
[TimeControl "180+1"]
[EndTime "10:55:06 PDT"]
[Termination "Indianlad won by resignation"]

1. e4 {[%clk 0:03:00.9]} 1... e6 {[%clk 0:02:59.7]} 2. d4 {[%clk 0:03:01]} 2...
d5 {[%clk 0:03:00.6]} 3. Bd3 {[%clk 0:03:01.2]} 3... dxe4 {[%clk 0:02:57.6]} 4.
Bxe4 {[%clk 0:03:02.1]} 4... Nf6 {[%clk 0:02:58.3]} 5. Bf3 {[%clk 0:03:02.8]}
5... c5 {[%clk 0:02:59.2]} 6. Ne2 {[%clk 0:03:03.3]} 6... Nc6 {[%clk 0:02:59.1]}
7. Be3 {[%clk 0:03:03.2]} 7... cxd4 {[%clk 0:02:59.2]} 8. Nxd4 {[%clk
0:03:03.4]} 8... Ne5 {[%clk 0:02:59.7]} 9. Nc3 {[%clk 0:03:03.8]} 9... Bb4
{[%clk 0:02:59.5]} 10. Qe2 {[%clk 0:02:57.9]} 10... Bxc3+ {[%clk 0:02:10.5]} 11.
bxc3 {[%clk 0:02:57.9]} 11... Qa5 {[%clk 0:02:11.4]} 12. O-O {[%clk 0:02:50]}
12... a6 {[%clk 0:01:54.7]} 13. Bf4 {[%clk 0:02:27.6]} 13... Nxf3+ {[%clk
0:01:49.5]} 14. Qxf3 {[%clk 0:02:28.5]} 14... O-O {[%clk 0:01:41.9]} 15. Rfe1
{[%clk 0:02:25.3]} 15... Qd5 {[%clk 0:01:35.7]} 16. Qe3 {[%clk 0:02:15.3]} 16...
b5 {[%clk 0:01:28.2]} 17. Be5 {[%clk 0:02:11.4]} 17... Bb7 {[%clk 0:01:20.4]}
18. f3 {[%clk 0:02:11.7]} 18... Ng4 {[%clk 0:01:10]} 19. Qf4 {[%clk 0:02:02.6]}
19... Nxe5 {[%clk 0:01:06.5]} 20. Rxe5 {[%clk 0:02:03.5]} 20... Qc4 {[%clk
0:01:07]} 21. Re3 {[%clk 0:01:56.1]} 21... Rfd8 {[%clk 0:01:04.3]} 22. a3 {[%clk
0:01:54.7]} 22... Rac8 {[%clk 0:00:54.6]} 23. h4 {[%clk 0:01:54.1]} 23... Qd5
{[%clk 0:00:48.6]} 24. Rae1 {[%clk 0:01:50.6]} 24... Qa2 {[%clk 0:00:46.7]} 25.
h5 {[%clk 0:01:49.5]} 25... h6 {[%clk 0:00:46.8]} 26. Qg4 {[%clk 0:01:08.3]}
26... Qxa3 {[%clk 0:00:44.1]} 27. c4 {[%clk 0:00:46.3]} 27... Qc5 {[%clk
0:00:43.1]} 28. c3 {[%clk 0:00:47.1]} 28... Qxc4 {[%clk 0:00:42.7]} 29. f4
{[%clk 0:00:47.8]} 29... b4 {[%clk 0:00:41.8]} 30. Rg3 {[%clk 0:00:47.8]} 30...
g6 {[%clk 0:00:34.7]} 31. hxg6 {[%clk 0:00:48.4]} 31... f5 {[%clk 0:00:34.8]}
32. Qh4 {[%clk 0:00:49]} 32... bxc3 {[%clk 0:00:34.2]} 33. Nxe6 {[%clk
0:00:47.4]} 33... Rd7 {[%clk 0:00:17]} 34. Qxh6 {[%clk 0:00:44.9]} 34... Qxe6
{[%clk 0:00:10.2]} 35. Rxe6 {[%clk 0:00:42.6]} 35... c2 {[%clk 0:00:11.1]} 36.
g7 {[%clk 0:00:39.3]} 36... c1=Q+ {[%clk 0:00:11.1]} 37. Kh2 {[%clk 0:00:40.1]}
37... Rd1 {[%clk 0:00:05.3]} 38. Qh8+ {[%clk 0:00:40]} 38... Kf7 {[%clk
0:00:06.2]} 39. g8=Q+ {[%clk 0:00:40.6]} 1-0